bitfinex/quotes_ETHUSD_20251116
["timestamp","ask_amount","ask_price","bid_price","bid_amount"]
[1763329868519,0.002,3081.2,3081.1,1.336004]
[1763329869341,0.002,3081.2,3081.1,2.4697448]
[1763329869534,0.002,3081.2,3081.1,2.83294444]
[1763329871746,0.002,3081.2,3080.5,2.77428588]
[1763329871747,0.9381,3081.2,3080.5,2.77428588]
[1763329871951,0.002,3081.2,3080.4,2.3956332]
[1763329872151,0.002,3081.2,3080.5,1.61203427]
[1763329872318,0.002,3081.2,3080.4,0.24494012]
[1763329872514,0.50992851,3081.1,3080.5,0.405504]
[1763329872721,0.50992851,3081.1,3080.5,0.33972335]
[1763329872925,0.50992851,3081.1,3080.6,0.405504]
[1763329875065,0.50992851,3081.1,3081.0,0.871204]
[1763329875299,0.002,3081.2,3080.8,5.0137408]
[1763329875430,0.002,3081.2,3080.9,0.405504]
[1763329875629,0.002,3081.2,3081.0,0.54192448]
[1763329876028,0.002,3081.2,3080.9,0.405504]
[1763329876221,0.002,3081.2,3080.7,1.5392448]
[1763329876625,0.002,3081.2,3080.7,1.9900448]
[1763329876854,0.002,3081.2,3080.7,1.5392448]
[1763329877874,0.002,3081.2,3080.8,0.405504]
[1763329878253,0.002,3081.2,3080.8,0.94742848]
[1763329878448,0.51190995,3081.2,3080.8,0.94742848]
[1763329879779,0.51190995,3081.2,3080.8,0.405504]
[1763329880181,1.00870995,3081.2,3080.8,0.405504]
[1763329880477,1.00870995,3081.2,3081.0,1.5392448]
[1763329880867,0.51190995,3081.2,3081.0,1.5392448]
[1763329881287,0.30218069,3081.1,3081.0,1.5392448]
[1763329882346,0.30218069,3081.1,3081.0,6.57629444]
[1763329882555,0.51190995,3081.2,3081.0,6.57629444]
[1763329882762,0.51190995,3081.2,3081.1,2.0705811]
[1763329882957,0.81396074,3081.2,3081.1,2.0705811]
[1763329883175,0.51190995,3081.2,3081.1,2.0705811]
[1763329883386,0.51190995,3081.2,3081.1,2.9867297]
[1763329883886,0.002,3081.2,3081.1,2.9867297]
[1763329884054,0.002,3081.2,3081.1,4.73010712]
[1763329884255,0.002,3081.2,3081.1,9.07740712]
[1763329884456,0.002,3081.2,3081.1,7.3340297]
[1763329885081,0.002,3081.6,3081.2,1.5392448]
[1763329885291,0.002,3081.6,3081.5,2.0381448]
[1763329885587,0.002,3081.6,3081.5,5.9181448]
[1763329885952,0.002,3081.6,3081.5,10.08985427]
[1763329886165,0.30195761,3081.7,3081.5,5.9181448]
[1763329886360,0.30195761,3081.8,3081.5,7.66755427]
[1763329886563,0.46,3081.8,3081.7,1.57175285]
[1763329886787,0.76205691,3081.8,3081.7,0.405504]
[1763329886979,1.23965691,3081.8,3081.7,0.405504]
[1763329887177,1.7495033,3081.8,3081.7,0.405504]
[1763329887565,1.7495033,3081.8,3081.6,1.1337408]
[1763329887791,0.93515691,3081.7,3081.6,1.1337408]
[1763329887954,0.93515691,3081.7,3081.0,1.16624885]
[1763329888160,0.50984639,3081.8,3081.1,0.405504]
[1763329888161,1.23655691,3081.6,3081.1,0.405504]
[1763329888485,0.30205691,3081.5,3080.8,1.16624885]
[1763329888696,0.1761,3081.0,3080.9,0.405504]
[1763329888986,0.30205691,3081.0,3080.9,0.405504]
[1763329889191,1.23965691,3081.0,3080.8,1.16624885]
[1763329889377,0.30205691,3080.9,3080.8,1.16624885]
[1763329889561,0.30205691,3080.9,3080.7,1.16624885]
[1763329889763,0.46,3081.3,3080.7,1.16624885]
[1763329889764,0.30205691,3080.8,3080.7,1.16624885]
[1763329889981,0.77965691,3080.8,3080.7,0.405504]
[1763329890292,0.77965691,3080.8,3080.5,1.16624885]
[1763329890293,0.95165691,3080.8,3080.5,1.16624885]
[1763329890470,0.95285691,3080.7,3080.4,1.16624885]
[1763329890672,0.30205691,3080.6,3080.4,2.29998965]
[1763329890873,0.30205691,3080.5,3080.4,2.70549365]
[1763329891091,0.30205691,3080.6,3080.4,2.70549365]
[1763329891292,0.46,3081.2,3080.5,0.405504]
[1763329891463,0.30235928,3081.1,3080.7,2.07218143]
[1763329891664,0.96984639,3081.8,3081.0,0.405504]
[1763329891864,0.76235509,3081.7,3081.0,0.405504]
[1763329892063,0.30235509,3081.6,3081.0,0.405504]
[1763329892265,0.30235509,3081.5,3081.0,0.405504]
[1763329892584,0.76235509,3081.4,3081.0,0.405504]
[1763329892783,0.30235509,3081.3,3081.0,0.405504]
[1763329892985,0.30235509,3081.2,3081.0,0.405504]
[1763329893172,0.50984639,3081.8,3081.0,0.405504]
[1763329893173,0.30235509,3081.1,3081.0,0.405504]
[1763329896694,0.30235509,3081.1,3081.0,0.904404]
[1763329896887,0.30235509,3081.1,3081.0,5.9181448]
[1763329897273,0.30235509,3081.1,3081.0,6.62673702]
[1763329897585,0.50990183,3081.1,3081.0,4.00050556]
[1763329897759,0.191,3081.9,3081.1,1.1337408]
[1763329897969,0.191,3081.9,3081.4,0.405504]
[1763329897970,0.76258426,3081.8,3081.4,0.405504]
[1763329898300,0.30258426,3081.7,3081.4,0.405504]
[1763329898505,0.30258426,3081.6,3081.4,0.405504]
[1763329898697,0.30258426,3081.5,3081.4,0.405504]
[1763329899391,0.30258426,3081.5,3081.3,2.15816412]
[1763329899593,0.30258426,3081.4,3081.3,2.15816412]
[1763329899784,0.78018426,3081.4,3081.3,0.405504]
[1763329899984,1.24018426,3081.4,3081.3,0.405504]
[1763329900191,1.24018426,3081.4,3081.3,1.57396691]
[1763329900371,0.78018426,3081.4,3081.3,0.405504]
[1763329902003,1.24018426,3081.4,3081.3,0.405504]
[1763329902703,1.24018426,3081.4,3081.3,1.5392448]
[1763329902877,0.78018426,3081.4,3081.3,1.5392448]
[1763329903713,0.78018426,3081.4,3081.3,1.5402448]
[1763329903909,0.78018426,3081.4,3081.3,1.1347408]
[1763329904110,1.24018426,3081.4,3081.3,2.30360558]
[1763329904679,1.24018426,3081.4,3081.3,0.001]
[1763329905083,0.78018426,3081.4,3081.3,0.406504]
[1763329905394,0.78018426,3081.4,3081.3,1.84627974]
[1763329905598,0.30258426,3081.4,3081.3,1.84627974]
[1763329905899,0.30258426,3081.4,3081.3,2.92897508]
[1763329906627,0.30258426,3081.7,3081.3,1.17631496]
[1763329906829,0.30258426,3081.6,3081.5,0.405504]
[1763329907389,0.30258426,3081.7,3081.5,0.405504]
[1763329907612,0.30258426,3081.6,3081.5,2.15858842]
[1763329907893,0.30258426,3081.7,3081.6,1.5392448]
[1763329908322,0.30258426,3081.7,3081.6,0.405504]
[1763329908531,0.30258426,3081.7,3081.6,1.12026284]
[1763329908890,0.002,3081.8,3081.7,0.405504]
[1763329909125,0.002,3081.8,3081.7,4.82994803]
[1763329909427,0.002,3081.8,3081.7,2.5054448]
[1763329910426,0.4796,3081.8,3081.7,1.1337408]
[1763329910628,1.24229029,3081.8,3081.3,1.16835039]
[1763329910801,0.4747,3081.4,3081.3,1.16835039]
[1763329911001,0.4747,3081.4,3081.3,0.001]
[1763329911215,1.27219029,3081.4,3081.3,0.001]
[1763329911414,0.002,3081.8,3081.3,2.46439636]
[1763329911603,0.30476428,3081.8,3081.6,1.57291513]
[1763329911803,0.002,3081.8,3081.7,0.887804]
[1763329912015,0.002,3081.8,3081.7,2.05521513]
[1763329912191,0.002,3081.8,3081.7,4.26563204]
[1763329912392,0.002,3081.8,3081.7,4.80556932]
[1763329912596,0.002,3081.8,3081.7,3.05468208]
[1763329912829,0.002,3081.8,3081.7,2.5147448]
[1763329913043,0.30276428,3082.9,3082.0,0.405504]
[1763329913250,0.30276428,3083.2,3082.8,1.57237201]
[1763329913436,0.30256958,3083.8,3083.1,1.57237201]
[1763329913627,0.30256958,3083.7,3083.1,1.57237201]
[1763329913823,0.79736958,3083.8,3083.1,1.57237201]
[1763329914149,0.191,3084.0,3082.9,1.75030201]
[1763329914150,0.4938,3083.2,3082.9,1.16686801]
[1763329914353,0.4938,3083.0,3082.9,0.405504]
[1763329914518,0.79598646,3083.0,3082.2,2.30060881]
[1763329914851,0.1012,3082.8,3082.2,0.405504]
[1763329915061,0.30218646,3082.8,3082.2,0.405504]
[1763329915416,0.79698646,3082.8,3082.2,0.405504]
[1763329915614,0.30218646,3082.7,3082.2,0.405504]
[1763329916047,0.4948,3082.6,3082.2,0.405504]
[1763329917571,0.4948,3082.6,3082.1,1.57237201]
[1763329918250,0.4938,3082.2,3082.1,0.405504]
[1763329918453,0.4938,3082.2,3082.0,1.16686801]
[1763329918653,0.1972,3082.9,3081.8,1.16686801]
[1763329918654,0.596,3082.1,3081.8,1.16686801]
[1763329918855,0.1972,3082.0,3081.7,1.16686801]
[1763329919161,0.1972,3082.0,3081.8,0.405504]
[1763329919316,0.1972,3082.0,3081.7,1.16686801]
[1763329919317,0.592,3081.9,3081.7,1.16686801]
[1763329919521,0.1972,3081.9,3081.5,1.82560084]
[1763329919850,0.1972,3081.9,3081.6,0.405504]
[1763329920016,0.1972,3081.9,3081.6,1.57237201]
[1763329920225,0.1972,3082.0,3081.6,1.57237201]
[1763329920442,0.1972,3082.2,3081.6,1.57237201]
[1763329920643,0.4948,3082.6,3081.8,0.405504]
[1763329920970,0.30187496,3082.5,3081.8,0.405504]
[1763329921179,0.30187496,3082.7,3081.7,1.57237201]
[1763329921652,0.4948,3082.6,3081.7,1.57237201]
[1763329921847,0.79667496,3082.6,3081.7,0.405504]
[1763329922046,0.30187496,3082.5,3081.7,0.405504]
[1763329922243,0.79667496,3082.5,3081.7,0.405504]
[1763329922493,0.30187496,3082.4,3081.7,0.405504]
[1763329922678,0.79667496,3082.4,3081.7,0.405504]
[1763329922876,0.30187496,3082.3,3081.7,2.70611281]
[1763329923187,0.30187496,3082.3,3081.7,1.57237201]
[1763329923389,0.30187496,3082.5,3081.7,1.57237201]
[1763329923585,0.002,3082.2,3081.7,1.57237201]
[1763329923989,0.4968,3082.2,3081.7,1.57237201]
[1763329924189,0.30187496,3082.1,3081.7,1.57237201]
[1763329924488,0.50977673,3082.1,3081.7,1.57237201]
[1763329924689,0.002,3082.2,3081.7,1.57237201]
[1763329924876,0.002,3082.2,3082.1,0.4823]
[1763329925077,0.002,3082.2,3082.1,1.070804]
[1763329925274,0.002,3082.2,3082.1,1.564004]
[1763329925987,0.002,3082.2,3082.1,2.15323809]
[1763329926176,0.002,3082.2,3082.1,3.95227889]
[1763329926888,0.002,3082.2,3082.1,3.68220678]
[1763329927191,0.4958,3082.2,3082.1,3.28697889]
[1763329927362,0.4958,3082.2,3082.1,1.5392448]
[1763329927550,0.9906,3082.2,3082.1,1.5392448]
[1763329927962,1.50033733,3082.2,3082.1,1.5392448]
[1763329928302,0.81504091,3082.2,3082.1,1.7990408]
[1763329928456,0.81504091,3082.2,3082.1,4.74196314]
[1763329928457,0.002,3082.2,3082.1,4.74196314]
[1763329928661,0.002,3082.2,3082.1,2.99422905]
[1763329928861,0.30338426,3083.1,3082.2,0.405504]
[1763329929059,0.692,3083.2,3082.7,0.405504]
[1763329929273,0.30338426,3083.1,3082.7,0.405504]
[1763329929476,0.30338426,3083.1,3082.7,0.67600234]
[1763329929477,0.79818426,3083.1,3082.7,0.67600234]
[1763329929675,0.30338426,3083.0,3082.7,0.67600234]
[1763329929882,0.79818426,3083.0,3082.7,0.67600234]
[1763329930083,0.30338426,3082.9,3082.7,0.67600234]
[1763329930291,0.3948,3082.8,3082.7,0.405504]
[1763329930493,0.69816197,3082.8,3082.6,0.405504]
[1763329930698,0.6939,3082.7,3082.6,0.405504]
[1763329931723,1.50695404,3082.7,3082.5,0.405504]
[1763329931998,1.19077306,3082.6,3082.5,0.405504]
[1763329932194,1.19077306,3082.6,3082.3,0.405504]
[1763329932378,0.2011,3082.4,3082.3,0.405504]
[1763329932777,0.4948,3082.4,3082.3,0.405504]
[1763329933199,0.21078121,3082.7,3082.3,0.405504]
[1763329933410,0.70558121,3082.7,3082.3,1.57124261]
[1763329933569,0.30307715,3082.6,3082.2,0.405504]
[1763329933772,0.79787715,3082.6,3082.2,0.405504]
[1763329934023,0.30307715,3082.5,3082.2,0.405504]
[1763329934219,0.4938,3082.3,3082.2,0.405504]
[1763329934898,0.4938,3082.3,3082.2,1.57124261]
[1763329935214,0.79721558,3082.3,3082.2,1.57124261]
[1763329936820,0.79721558,3082.3,3082.2,0.405504]
[1763329937419,0.79721558,3082.3,3082.2,1.57124261]
[1763329938631,0.79721558,3082.3,3081.6,1.74860792]
[1763329938924,0.21078121,3082.7,3081.5,0.001]
[1763329938925,0.6814,3081.7,3081.5,0.001]
[1763329939098,0.30341558,3081.6,3081.5,0.001]
[1763329939300,0.30341558,3081.6,3081.3,0.001]
[1763329939301,0.76161558,3081.6,3081.3,0.001]
[1763329939496,0.30341558,3081.5,3080.9,0.001]
[1763329939746,0.30341558,3081.5,3079.7,1.74960792]
[1763329939747,0.1448,3081.0,3079.7,1.74960792]
[1763329940034,0.1945,3080.3,3079.7,0.001]
[1763329940391,0.30304011,3080.7,3079.7,0.001]
[1763329940587,0.4869,3080.1,3079.7,0.001]
[1763329940784,0.19241558,3081.7,3079.7,0.406504]
[1763329940983,0.19241558,3081.7,3079.9,0.405504]
[1763329940984,0.1414,3080.6,3079.9,0.405504]
[1763329941436,0.4526,3080.5,3079.7,0.001]
[1763329941990,0.51000093,3080.4,3079.7,0.001]
[1763329942190,0.4526,3080.5,3079.7,0.001]
[1763329943710,0.4526,3080.5,3079.8,0.405504]
[1763329945327,0.51002454,3080.4,3079.8,0.405504]
[1763329945717,0.4526,3080.3,3079.8,0.405504]
[1763329947427,0.4526,3080.3,3079.7,0.001]
[1763329948228,0.4728,3080.1,3079.7,0.001]
[1763329950941,0.51002454,3080.4,3079.7,0.001]
[1763329951516,0.4526,3080.3,3079.7,0.001]
[1763329952118,0.4526,3080.3,3080.0,0.406504]
[1763329952302,0.4526,3080.3,3080.0,0.001]
[1763329952699,0.51002454,3080.4,3080.0,0.001]
[1763329952915,0.96262454,3080.4,3080.0,0.001]
[1763329953935,0.4526,3080.4,3080.0,0.001]
[1763329954141,0.1414,3080.6,3080.0,0.001]
[1763329954437,0.1414,3080.6,3080.0,0.406504]
[1763329954634,0.1414,3080.6,3080.0,0.001]
[1763329955626,0.4728,3080.1,3080.0,0.001]
[1763329957504,0.65154564,3080.6,3080.0,0.001]
[1763329957709,0.30183751,3080.5,3080.0,0.001]
[1763329958108,0.4526,3080.4,3080.0,0.001]
[1763329960244,0.30215391,3080.3,3080.0,0.001]
[1763329960628,0.4728,3080.1,3080.0,0.001]
[1763329961517,0.77515396,3080.1,3080.0,0.001]
[1763329963015,0.77515396,3080.1,3079.7,0.001]
[1763329963216,0.1414,3080.6,3079.7,0.001]
[1763329963217,0.1904,3079.8,3079.7,0.001]
[1763329963613,0.94535396,3079.8,3079.7,0.001]
[1763329964514,0.96555396,3079.8,3079.5,0.001]
[1763329964718,0.4728,3079.6,3079.5,0.001]
[1763329965023,0.77515396,3079.6,3079.5,0.001]
[1763329970971,0.30235396,3079.6,3079.5,0.001]
[1763329971787,0.81263446,3079.6,3079.5,0.4639]
[1763329971973,0.30235396,3079.6,3079.5,1.331704]
[1763329972329,0.30235396,3080.3,3079.6,0.405504]
[1763329972555,0.30235396,3080.2,3079.6,0.867804]
[1763329972869,0.30235396,3080.1,3079.6,0.867804]
[1763329973083,0.30235396,3080.0,3079.6,0.867804]
[1763329973378,0.30235396,3079.9,3079.7,0.405504]
[1763329973541,0.30235396,3079.8,3079.7,0.405504]
[1763329973724,0.30235396,3080.5,3079.7,0.405504]
[1763329973927,0.30235396,3080.4,3079.7,0.405504]
[1763329974169,0.30235396,3080.3,3079.7,0.405504]
[1763329974476,0.1414,3080.6,3079.8,0.405504]
[1763329974477,0.30235396,3080.2,3079.8,0.405504]
[1763329974628,0.30235396,3080.1,3079.8,0.405504]
[1763329974826,0.30235396,3080.0,3079.8,0.405504]
[1763329975054,0.30235396,3079.9,3079.8,0.405504]
[1763329975436,0.30235396,3080.5,3079.9,0.405504]
[1763329975761,0.30235396,3080.4,3079.9,0.405504]
[1763329975956,0.30235396,3080.3,3079.9,0.405504]
[1763329976260,0.30235396,3080.2,3079.9,0.405504]
[1763329976457,0.1414,3080.6,3079.9,0.405504]
[1763329976458,0.30235396,3080.1,3079.9,0.405504]
[1763329976658,0.30235396,3080.0,3079.9,0.405504]
[1763329977068,0.30235396,3080.0,3079.9,1.330704]
[1763329978258,0.30235396,3080.7,3079.9,1.330704]
[1763329978572,0.30235396,3080.6,3079.9,1.330704]
[1763329978772,0.30235396,3080.5,3079.9,1.330704]
[1763329978972,0.002,3080.0,3079.9,1.330704]
[1763329979871,0.30435396,3080.0,3079.9,1.330704]
[1763329980169,0.002,3080.0,3079.9,1.330704]
[1763329980747,0.002,3080.0,3079.9,0.868404]
[1763329980943,0.002,3080.0,3079.9,1.330704]
[1763329981283,0.002,3080.4,3079.9,1.330704]
[1763329981284,0.30235396,3080.3,3080.0,0.405504]
[1763329981495,0.002,3080.4,3080.3,0.585804]
[1763329981642,0.002,3080.7,3080.4,0.405504]
[1763329981841,0.002,3080.7,3080.6,2.0335971]
[1763329982084,0.30235396,3081.5,3080.7,0.405504]
[1763329982294,0.002,3081.7,3081.6,0.868404]
[1763329982593,0.002,3081.7,3081.6,0.405504]
[1763329982745,0.002,3081.7,3081.1,0.405504]
[1763329982746,0.75765396,3081.7,3081.1,0.405504]
[1763329982946,0.30235396,3081.6,3081.1,0.405504]
[1763329983143,0.30235396,3081.5,3081.1,0.405504]
[1763329983343,0.50997216,3081.5,3081.1,0.405504]
[1763329983550,0.30235396,3081.4,3081.3,0.405504]
[1763329983941,0.30235396,3081.4,3081.1,0.405504]
[1763329984916,0.30235396,3081.4,3081.1,0.867804]
[1763329985518,0.30235396,3081.4,3081.1,0.405504]
[1763329986213,0.50997216,3081.5,3081.4,0.405504]
[1763329986415,0.50997216,3081.5,3081.4,1.330704]
[1763329986589,0.50997216,3081.5,3081.4,0.868404]
[1763329986794,0.50997216,3081.5,3081.4,1.330704]
[1763329987417,0.50997216,3081.5,3081.0,0.1671]
[1763329987713,0.50997216,3081.5,3081.1,0.405504]
[1763329988788,0.002,3081.7,3081.1,0.405504]
[1763329989386,0.30448454,3081.7,3081.1,0.405504]
[1763329989714,0.002,3081.7,3081.1,0.867804]
[1763329991124,0.002,3081.7,3081.6,0.868404]
[1763329991496,0.002,3081.7,3081.6,1.330704]
[1763329991721,0.002,3081.7,3081.6,0.868404]
[1763329992361,0.002,3081.7,3081.2,1.1337408]
[1763329992362,0.4553,3081.7,3081.3,0.405504]
[1763329992563,0.002,3081.7,3081.6,0.868404]
[1763329992722,0.002,3081.7,3081.2,1.1337408]
[1763329993110,0.002,3081.7,3081.3,0.4623]
[1763329993336,0.002,3081.7,3081.2,1.1337408]
[1763329993841,0.002,3081.7,3081.3,0.867804]
[1763329994421,0.002,3081.7,3081.3,0.405504]
[1763329994815,0.002,3081.7,3081.3,0.867804]
[1763329995247,0.002,3081.7,3081.3,0.405504]
[1763329995767,0.002,3081.7,3081.6,0.868404]
[1763329996543,0.002,3081.7,3081.6,0.405504]
[1763329996953,0.2682,3081.7,3081.6,0.405504]
[1763329997123,0.735,3081.7,3081.4,1.1337408]
[1763329997325,0.002,3081.7,3081.1,0.1935]
[1763329997527,0.002,3081.7,3081.6,0.4649]
[1763329997716,0.002,3081.7,3081.6,0.870404]
[1763329998037,0.002,3081.7,3081.6,0.405504]
[1763329998211,0.7297,3081.7,3081.3,0.405504]
[1763329998848,0.2629,3081.7,3081.3,0.405504]
[1763329999246,0.002,3081.7,3081.6,0.870404]
[1763329999637,0.002,3081.7,3081.6,1.366404]
[1763330001446,0.002,3081.7,3081.6,6.3801448]
[1763330002352,0.5117711,3081.7,3081.6,6.3801448]
[1763330002729,0.002,3081.7,3081.6,8.3351448]
[1763330002920,0.002,3081.7,3081.6,7.33010599]
[1763330003551,0.002,3081.7,3081.6,8.49457304]
[1763330004052,0.002,3081.7,3081.6,7.33010599]
[1763330004552,0.002,3082.1,3081.7,1.5392448]
[1763330004759,0.002,3082.1,3082.0,0.899904]
[1763330004928,0.002,3082.1,3082.0,1.10593317]
[1763330005128,0.002,3082.1,3082.0,2.69037397]
[1763330005922,0.002,3082.1,3082.0,1.55663317]
[1763330008328,0.002,3082.1,3082.0,7.72876167]
[1763330008851,0.002,3082.1,3082.0,5.62327397]
[1763330009072,0.002,3082.1,3082.0,6.11767397]
[1763330010153,0.002,3082.1,3082.0,4.777904]
[1763330010351,0.002,3082.1,3082.0,5.9116448]
[1763330010743,0.55032286,3082.1,3082.0,1.1337408]
[1763330010957,1.03632286,3082.1,3082.0,1.5392448]
[1763330012339,1.03632286,3082.1,3082.0,1.1337408]
[1763330013367,1.03632286,3082.1,3082.0,0.6240408]
[1763330016383,0.55272286,3082.1,3082.0,0.6240408]
[1763330016971,1.03632286,3082.1,3082.0,0.6240408]
[1763330018091,0.55272286,3082.1,3082.0,0.6240408]
[1763330018292,0.30492286,3082.1,3082.0,1.5239448]
[1763330018677,0.55032286,3082.1,3082.0,1.0295448]
[1763330018998,1.03632286,3082.1,3082.0,1.0295448]
[1763330019852,0.30492286,3082.1,3082.0,1.0295448]
[1763330020267,0.30601833,3082.1,3082.0,1.0295448]
[1763330020471,0.30601833,3082.1,3082.0,1.9746448]
[1763330020674,0.30601833,3082.1,3082.0,2.17210928]
[1763330022614,0.30600851,3082.1,3082.0,2.17210928]
[1763330022817,0.002,3082.1,3082.0,2.17210928]
[1763330022973,0.002,3082.1,3082.0,3.91269083]
[1763330023165,0.002,3082.1,3082.0,6.05010928]
[1763330024699,0.002,3082.1,3082.0,6.21112986]
[1763330024900,0.30590398,3082.1,3082.0,1.16379357]
[1763330025099,0.30590398,3082.1,3081.7,1.16379357]
[1763330025290,0.30390398,3082.0,3081.7,1.16379357]
[1763330025503,0.30390398,3081.9,3081.7,1.61449357]
[1763330025688,0.30390398,3081.8,3081.7,1.61449357]
[1763330026014,0.30390398,3081.8,3081.7,1.16379357]
[1763330026218,0.30390398,3081.8,3081.5,1.16379357]
[1763330026422,0.002,3082.1,3081.8,0.405504]
[1763330026600,0.7924646,3082.0,3081.6,1.16379357]
[1763330026775,0.2454,3081.8,3081.6,0.405504]
[1763330026976,0.7726646,3081.7,3081.6,0.405504]
[1763330027719,0.7726646,3081.7,3081.4,1.16379357]
[1763330027720,0.7908646,3081.7,3081.4,1.16379357]
[1763330028023,0.3222646,3081.6,3081.3,1.16379357]
[1763330028250,0.3040646,3081.5,3081.4,0.405504]
[1763330028530,0.3040646,3081.5,3081.4,1.56929757]
[1763330028671,0.5455646,3081.5,3081.4,1.16379357]
[1763330028868,0.5455646,3081.5,3081.3,1.16379357]
[1763330029071,0.3040646,3081.4,3081.3,1.56929757]
[1763330029310,0.3040646,3081.4,3081.3,0.405504]
[1763330029549,0.3040646,3081.4,3081.3,0.899904]
[1763330030171,0.3040646,3081.4,3081.3,2.0336448]
[1763330030610,0.3040646,3081.8,3081.4,0.405504]
[1763330030778,0.3040646,3081.7,3081.4,1.57271997]
[1763330030974,0.2415,3081.5,3081.4,1.57271997]
[1763330031172,0.5455646,3081.5,3081.2,1.16721597]
[1763330031510,0.2332,3081.3,3081.2,0.405504]
[1763330031803,0.5372646,3081.3,3081.1,1.16721597]
[1763330032005,0.3063646,3081.2,3081.0,5.04521597]
[1763330032207,0.5349646,3081.1,3081.0,6.17895677]
[1763330032382,0.2309,3081.1,3080.9,1.16821597]
[1763330032709,0.2309,3081.1,3080.9,0.001]
[1763330032710,0.3090646,3081.0,3080.9,0.001]
[1763330033214,0.8058646,3081.0,3080.9,0.001]
[1763330033444,0.3090646,3081.0,3080.9,0.001]
[1763330033812,0.8058646,3081.0,3080.9,0.001]
[1763330034126,0.3040646,3081.0,3080.9,0.001]
[1763330034300,0.2332,3081.0,3080.9,0.001]
[1763330035011,0.5372646,3081.0,3080.9,0.001]
[1763330035511,0.3040646,3081.3,3080.9,0.4933]
[1763330035843,0.3040646,3081.2,3080.9,0.406504]
[1763330035999,0.3040646,3081.1,3080.9,0.406504]
[1763330036200,0.05,3081.5,3080.9,0.406504]
[1763330036201,0.3040646,3081.4,3080.9,0.406504]
[1763330036411,0.3040646,3081.3,3081.0,0.405504]
[1763330036612,0.3040646,3081.2,3081.0,0.405504]
[1763330036842,0.3040646,3081.4,3081.0,0.405504]
[1763330037068,0.3040646,3081.3,3081.0,0.405504]
[1763330037340,0.3040646,3081.2,3081.0,0.405504]
[1763330037545,0.3040646,3081.3,3081.0,0.405504]
[1763330037835,0.3040646,3081.2,3081.0,0.405504]
[1763330038036,0.3040646,3081.3,3081.0,0.405504]
[1763330038238,0.3040646,3081.2,3081.0,0.405504]
[1763330038446,0.3040646,3081.4,3081.0,0.405504]
[1763330038602,0.3040646,3081.3,3081.0,0.405504]
[1763330038804,0.3040646,3081.4,3081.0,0.405504]
[1763330039002,0.3040646,3081.3,3081.0,0.405504]
[1763330039200,0.3040646,3081.2,3081.0,0.405504]
[1763330039444,0.3040646,3081.4,3081.0,0.405504]
[1763330039782,0.2332,3081.1,3081.0,0.405504]
[1763330039951,0.5372646,3081.1,3080.9,0.001]
[1763330040107,0.8531646,3081.0,3080.9,0.001]
[1763330041421,0.8531646,3081.0,3080.6,0.001]
[1763330041645,0.1863,3081.9,3080.0,0.001]
[1763330041646,0.0538,3080.4,3080.0,0.001]
[1763330041850,0.2277,3080.1,3080.0,0.001]
[1763330042057,0.05,3079.6,3079.5,0.001]
[1763330042257,0.0539,3079.6,3079.5,0.001]
[1763330042457,0.5507,3079.6,3079.5,0.001]
[1763330043165,0.3040646,3079.6,3079.5,0.001]
[1763330043378,0.05,3079.9,3079.5,0.001]
[1763330043538,0.3540646,3080.1,3079.5,0.001]
[1763330043741,0.1929,3080.7,3080.1,0.405504]
[1763330043742,0.4968,3080.6,3080.1,0.405504]
[1763330043973,0.30250647,3080.5,3080.1,0.405504]
[1763330044268,0.30250647,3080.5,3079.9,0.405504]
[1763330044932,0.79930647,3080.5,3079.5,0.406504]
[1763330045168,0.30250647,3080.4,3079.5,0.406504]
[1763330045367,0.79930647,3080.4,3079.5,0.406504]
[1763330045660,0.35250647,3080.3,3079.5,0.406504]
[1763330045864,0.05,3080.3,3079.7,0.405504]
[1763330046037,0.05,3080.3,3079.5,0.001]
[1763330046243,0.05,3080.3,3079.5,0.406504]
[1763330046440,0.05,3080.3,3079.5,0.001]
[1763330046627,0.3522141,3080.3,3079.6,0.405504]
[1763330046832,0.05,3080.3,3079.6,0.405504]
[1763330047241,0.05,3080.3,3079.5,0.001]
[1763330047441,0.05,3080.3,3079.7,0.405504]
[1763330047975,0.05,3080.3,3079.8,0.405504]
[1763330048938,0.3020701,3080.5,3080.0,0.405504]
[1763330049135,0.05,3081.1,3080.5,0.405504]
[1763330049475,0.05,3081.1,3080.7,0.405504]
[1763330049672,0.30229876,3081.2,3080.7,0.405504]
[1763330049835,0.2429,3081.3,3080.4,0.405504]
[1763330050041,0.002,3080.9,3080.4,0.405504]
[1763330050243,0.002,3080.9,3080.4,0.4592]
[1763330053367,0.002,3080.9,3080.4,0.79458608]
[1763330053768,0.002,3080.9,3080.6,0.405504]
[1763330055209,0.002,3080.9,3080.6,4.283504]
[1763330055362,0.002,3080.9,3080.8,0.897804]
[1763330056803,0.05,3080.8,3080.4,3.878]
[1763330056966,0.05,3080.8,3079.9,1.16721597]
[1763330056967,0.05,3080.3,3079.9,1.16721597]
[1763330057171,0.4508,3080.2,3079.9,1.16721597]
[1763330057372,0.4508,3080.2,3079.9,0.405504]
[1763330058180,0.4508,3080.2,3079.8,1.57371997]
[1763330058181,0.2636,3080.0,3079.8,1.57371997]
[1763330058411,0.2636,3080.0,3079.9,7.9728398]
[1763330058576,0.2636,3080.0,3079.9,7.5673358]
[1763330058771,0.7126,3080.0,3079.9,6.433595]
[1763330059020,0.05,3079.9,3079.8,0.001]
[1763330059316,0.80835107,3079.9,3079.8,0.001]
[1763330060242,0.5053,3079.9,3079.8,0.001]
[1763330063551,0.5053,3079.9,3079.3,0.001]
[1763330063850,0.2567,3079.4,3079.1,0.001]
[1763330064054,0.0095,3079.2,3079.1,0.001]
[1763330064417,0.4638,3079.2,3079.1,0.001]
[1763330065353,0.5138,3079.2,3079.1,0.001]
[1763330071727,0.0595,3079.2,3079.1,0.001]
[1763330071934,0.5138,3079.2,3079.1,0.001]
[1763330072138,0.0595,3079.2,3079.1,0.001]